bitfinex/quotes_ETHUSD_20250715
["timestamp","ask_amount","ask_price","bid_price","bid_amount"]
[1752539103405,0.002,3016.0,3015.9,3.3157598]
[1752539103704,5.029,3016.0,3015.9,3.3157598]
[1752539103904,5.029,3016.0,3015.8,0.16203199]
[1752539104089,5.029,3016.0,3015.8,3.47789603]
[1752539105409,5.029,3016.0,3015.8,0.16203199]
[1752539106310,5.029,3016.0,3015.8,3.47789392]
[1752539106812,0.002,3016.0,3015.9,3.3157598]
[1752539107020,5.027,3016.0,3015.9,4.1275598]
[1752539107920,5.032,3016.0,3015.9,4.1275598]
[1752539108700,5.031,3016.0,3015.9,4.1275598]
[1752539109024,0.002,3016.0,3015.9,4.1275598]
[1752539109321,0.002,3016.0,3015.9,5.54740642]
[1752539109531,5.031,3016.0,3015.9,5.54740642]
[1752539110299,5.031,3016.0,3015.9,10.30740642]
[1752539110499,5.031,3016.0,3015.9,10.27424883]
[1752539111597,0.002,3016.0,3015.9,10.27424883]
[1752539111797,5.03,3016.0,3015.9,10.27424883]
[1752539112830,5.029,3016.0,3015.9,10.27424883]
[1752539115269,5.029,3016.0,3015.9,9.46244883]
[1752539115468,5.029,3016.0,3015.9,4.76]
[1752539115825,5.029,3016.0,3015.9,8.0757598]
[1752539116028,5.029,3016.0,3015.9,4.76]
[1752539116654,5.029,3016.0,3015.9,8.0757598]
[1752539117859,0.002,3016.0,3015.9,8.6257598]
[1752539118060,5.028,3016.0,3015.9,9.83622533]
[1752539118566,5.028,3016.0,3015.9,10.63962533]
[1752539119066,5.028,3016.0,3015.9,5.87962533]
[1752539120681,0.002,3016.0,3015.9,4.6691598]
[1752539120825,5.028,3016.0,3015.9,4.6691598]
[1752539123383,5.028,3016.0,3015.9,3.3157598]
[1752539123554,5.028,3016.0,3015.8,0.16303199]
[1752539124481,5.028,3016.0,3015.8,3.47888918]
[1752539125890,0.002,3016.0,3015.8,3.47888918]
[1752539126086,0.002,3016.0,3015.8,0.16303199]
[1752539126252,5.025,3015.9,3015.8,0.16303199]
[1752539127310,5.025,3015.9,3015.8,3.47890174]
[1752539128097,0.002,3016.0,3015.9,3.3157598]
[1752539128412,5.027,3016.0,3015.9,3.3157598]
[1752539129701,0.002,3016.0,3015.9,3.3157598]
[1752539129906,0.002,3016.0,3015.9,4.07370504]
[1752539130101,5.027,3016.0,3015.9,4.07370504]
[1752539132325,0.002,3016.0,3015.9,4.07370504]
[1752539132471,0.002,3016.0,3015.9,4.65686263]
[1752539132676,5.026,3016.0,3015.9,4.65686263]
[1752539132899,0.002,3016.0,3015.9,4.62370504]
[1752539133102,5.026,3016.0,3015.9,4.62370504]
[1752539133579,5.026,3016.0,3015.9,19.38370504]
[1752539133918,0.002,3016.0,3015.9,19.38370504]
[1752539134119,5.026,3016.0,3015.9,19.38370504]
[1752539135449,0.002,3016.0,3015.9,19.38370504]
[1752539135660,5.026,3016.0,3015.9,20.19080504]
[1752539135806,0.002,3016.0,3015.9,26.52646558]
[1752539136512,1e-08,3016.0,3015.9,26.52646558]
[1752539139248,0.04,3016.9,3016.0,4.76]
[1752539139542,5.63961004,3017.3,3017.2,3.31433116]
[1752539139846,5.63961004,3017.3,3017.2,3.47993116]
[1752539141560,0.60761004,3017.3,3017.2,3.47993116]
[1752539141716,5.63861004,3017.3,3017.2,3.47993116]
[1752539142464,0.60761004,3017.3,3017.2,4.15936774]
[1752539142611,5.63861004,3017.3,3017.2,4.15936774]
[1752539143161,0.60761004,3017.3,3017.2,4.15936774]
[1752539144975,0.60761004,3017.3,3017.2,4.41016138]
[1752539145343,0.60761004,3017.3,3017.2,4.96016138]
[1752539145677,0.60761004,3017.3,3017.2,5.74976138]
[1752539146593,0.60761004,3017.3,3017.2,20.50976138]
[1752539147248,0.04,3017.9,3017.8,3.31367221]
[1752539147453,5.069,3017.9,3017.8,3.47927221]
[1752539147835,0.04,3017.9,3017.8,3.47927221]
[1752539148042,5.069,3017.9,3017.8,3.47927221]
[1752539148432,0.04,3017.9,3017.8,3.47927221]
[1752539148626,5.068,3017.9,3017.8,4.78753689]
[1752539148827,0.04,3017.9,3017.8,4.78753689]
[1752539149746,0.04,3017.9,3017.8,19.54753689]
[1752539150169,0.04,3018.9,3017.9,1.3581]
[1752539150369,0.04,3018.9,3018.2,10.55]
[1752539150676,0.04,3018.9,3018.8,3.31257453]
[1752539150977,0.04,3018.9,3018.8,3.86257453]
[1752539150978,5.073,3018.9,3018.8,3.86257453]
[1752539151281,0.04,3018.9,3018.8,13.86257453]
[1752539151586,0.04,3018.9,3018.8,16.29248937]
[1752539151879,0.04,3018.9,3018.8,16.54361076]
[1752539152117,0.04,3018.9,3018.8,17.32101076]
[1752539152283,1e-08,3019.9,3019.8,3.31147758]
[1752539152485,1e-08,3019.9,3019.8,14.62447758]
[1752539152624,1e-08,3019.9,3019.8,0.55]
[1752539153042,0.8074,3019.8,3019.1,0.55]
[1752539153265,0.8074,3019.8,3018.4,0.763]
[1752539153266,6.33566054,3019.5,3018.4,0.763]
[1752539153441,0.7533,3019.3,3018.4,4.07600145]
[1752539153664,5.069,3019.2,3018.4,10.763]
[1752539153870,3.31225965,3019.1,3018.4,0.763]
[1752539154057,3.31235629,3019.0,3018.4,0.763]
[1752539154258,5.069,3019.2,3018.2,3.31322846]
[1752539154444,3.31252864,3018.9,3018.2,0.43895249]
[1752539154636,3.31267118,3018.8,3018.1,4.10637516]
[1752539154832,8.38169181,3018.7,3018.1,0.7931]
[1752539155372,5.069,3018.7,3018.2,3.3132275]
[1752539155555,5.069,3018.7,3018.2,10.0]
[1752539155742,5.069,3018.7,3018.3,0.55]
[1752539156285,8.38169231,3018.7,3018.3,0.55]
[1752539156749,5.069,3018.7,3018.3,0.55]
[1752539157166,8.38169328,3018.7,3018.3,0.55]
[1752539157374,3.31283898,3018.6,3018.3,0.55]
[1752539157546,8.38171324,3018.7,3018.3,0.55]
[1752539158487,3.31280726,3018.6,3018.3,0.55]
[1752539158853,8.38172079,3018.7,3018.3,0.55]
[1752539159292,3.31279636,3018.6,3018.3,0.55]
[1752539159444,5.069,3018.7,3018.3,0.55]
[1752539159648,8.3817042,3018.7,3018.3,0.55]
[1752539160190,5.069,3018.7,3018.3,0.55]
[1752539160493,8.38168426,3018.7,3018.6,0.1656]
[1752539160935,3.31268426,3018.7,3018.6,0.1656]
[1752539161048,9.0392006,3018.7,3018.6,0.1656]
[1752539161254,8.37668426,3018.7,3018.6,0.1656]
[1752539162907,0.91343286,3019.2,3018.6,0.1656]
[1752539163195,3.31201831,3019.4,3018.7,13.34574686]
[1752539163396,5.065,3019.3,3018.4,0.7888]
[1752539163691,3.31244982,3019.0,3018.5,0.55]
[1752539163895,5.066,3018.9,3018.7,0.55]
[1752539164375,5.066,3018.9,3018.8,0.1656]
[1752539164957,9.2087648,3018.9,3018.8,0.1656]
[1752539165960,9.2087648,3018.9,3018.8,0.41016143]
[1752539167094,9.2087648,3018.9,3018.8,0.1656]
[1752539167300,10.46087729,3018.9,3018.8,0.1656]
[1752539168397,9.2097648,3018.9,3018.8,0.1656]
[1752539170809,9.2077648,3018.9,3018.8,0.1656]
[1752539171199,5.065,3018.9,3018.8,0.1656]
[1752539171376,8.3774648,3018.9,3018.8,0.1656]
[1752539171782,3.31238823,3019.0,3018.8,0.1656]
[1752539172005,5.064,3018.9,3018.8,0.1656]
[1752539172988,3.31244272,3019.0,3018.8,0.1656]
[1752539173194,4.06589199,3019.2,3019.0,0.1656]
[1752539173520,5.063,3019.1,3019.0,0.1656]
[1752539173720,8.37524537,3019.1,3019.0,0.1656]
[1752539180645,8.37224537,3019.1,3019.0,0.1656]
[1752539180846,9.61605429,3019.1,3019.0,0.1656]
[1752539186959,16.71867391,3019.1,3019.0,0.1656]
[1752539187163,3.31279401,3018.6,3018.5,0.001]
[1752539187480,5.061,3018.6,3018.5,0.001]
[1752539187682,5.061,3018.6,3018.5,0.1666]
[1752539188883,9.18239401,3018.6,3018.5,0.1666]
[1752539189692,5.8696,3018.6,3018.5,0.1666]
[1752539190364,5.061,3018.6,3018.5,0.1666]
[1752539191262,5.058,3018.6,3018.5,0.1666]
[1752539191487,4.0709162,3018.8,3018.5,0.1666]
[1752539191659,3.31279401,3018.6,3018.5,0.1666]
[1752539191848,8.37074529,3018.7,3018.5,0.1666]
[1752539192191,5.058,3018.7,3018.5,0.1666]
[1752539192693,4.07087861,3018.8,3018.5,0.1666]
[1752539192900,8.3706899,3018.7,3018.5,0.1666]
[1752539193049,8.3706899,3018.7,3018.5,0.001]
[1752539193388,4.07093086,3018.8,3018.6,0.1656]
[1752539193564,8.37068426,3018.7,3018.6,0.1656]
[1752539195583,9.61484064,3018.7,3018.6,0.1656]
[1752539198601,10.39184064,3018.7,3018.6,0.1656]
[1752539200106,10.38984064,3018.7,3018.6,0.1656]
[1752539200305,9.14568426,3018.7,3018.6,0.1656]
[1752539202506,8.36868426,3018.7,3018.6,0.1656]
[1752539202905,0.1656,3019.1,3018.6,0.1656]
[1752539202906,3.31233734,3019.1,3018.6,0.1656]
[1752539203111,3.31233734,3019.1,3018.5,3.31387517]
[1752539203112,4.09575543,3019.6,3018.7,0.7863]
[1752539203311,5.059,3019.5,3019.0,3.31228862]
[1752539203463,4.09555522,3019.8,3019.3,4.0983194]
[1752539203464,5.06,3019.4,3019.3,4.0983194]
[1752539204391,0.00200001,3019.9,3019.3,4.0982244]
[1752539204593,0.00200001,3019.9,3019.4,0.58311916]
[1752539204797,5.06,3019.8,3019.7,3.31158724]
[1752539205307,0.00200001,3019.9,3019.8,3.31147758]
[1752539205703,0.00200001,3019.9,3019.8,4.07467758]
[1752539206017,5.06500001,3019.9,3019.8,4.81330391]
[1752539206228,0.00200001,3019.9,3019.8,4.81330391]
[1752539206383,5.06500001,3019.9,3019.8,4.81330391]
[1752539209522,0.00200001,3019.9,3019.8,4.81330391]
[1752539209727,5.06300001,3019.9,3019.8,4.81330391]
[1752539211485,0.00200001,3019.9,3019.8,5.36330391]
[1752539211728,5.06100001,3019.9,3019.8,5.36330391]
[1752539213285,5.06100001,3019.9,3019.8,5.52810391]
[1752539215028,5.06100001,3019.9,3019.8,5.36330391]
[1752539216124,0.00200001,3019.9,3019.8,4.81330391]
[1752539217929,5.05700001,3019.9,3019.8,5.36330391]
[1752539218634,5.05600001,3019.9,3019.8,5.36330391]
[1752539219132,5.05600001,3019.9,3019.8,5.36430391]
[1752539221040,5.05400001,3019.9,3019.8,4.81430391]
[1752539222266,5.05400001,3019.9,3019.8,4.05110391]
[1752539223535,5.05400001,3019.9,3019.8,0.73962633]
[1752539223884,5.05400001,3019.9,3019.8,3.31247758]
[1752539224915,5.05400001,3019.9,3019.8,3.47727758]
[1752539227161,5.05300001,3019.9,3019.8,3.47727758]
[1752539229457,0.00200001,3019.9,3019.8,3.47727758]
[1752539229664,0.00200001,3019.9,3019.8,4.85377758]
[1752539229895,5.05200001,3019.9,3019.8,6.14631328]
[1752539232570,5.05200001,3019.9,3019.8,5.59631328]
[1752539232771,5.05200001,3019.9,3019.8,3.47727758]
[1752539234273,0.00200001,3019.9,3019.8,3.47727758]
[1752539234572,5.05000001,3019.9,3019.8,8.23727758]
[1752539235837,0.00200001,3019.9,3019.8,8.78727758]
[1752539236040,5.04900001,3019.9,3019.8,8.78727758]
[1752539236235,5.04900001,3019.9,3019.8,9.9971607]
[1752539237175,5.04900001,3019.9,3019.8,9.4471607]
[1752539238486,5.04800001,3019.9,3019.8,9.4471607]
[1752539240271,0.00200001,3019.9,3019.8,9.9971607]
[1752539240475,5.04600001,3019.9,3019.8,9.9971607]
[1752539241276,0.00200001,3019.9,3019.8,9.9971607]
[1752539244237,0.00200001,3019.9,3019.8,8.23727758]
[1752539250433,0.00200001,3019.9,3019.8,4.9258]
[1752539250633,0.00200001,3019.9,3019.8,8.23727758]
[1752539252246,0.00200001,3019.9,3019.8,3.47727758]
[1752539252413,5.03900001,3019.9,3019.8,3.47727758]
[1752539252746,5.03900001,3019.9,3019.8,5.26357132]
[1752539253323,0.00200001,3019.9,3019.8,5.81357132]
[1752539253522,5.03800001,3019.9,3019.8,5.81357132]
[1752539255131,0.00200001,3019.9,3019.8,6.63817132]
[1752539258126,0.00200001,3019.9,3019.8,11.39817132]
[1752539270584,1e-08,3019.9,3019.8,27.71225454]
[1752539272886,0.002,3020.7,3020.6,3.86060054]
[1752539273049,0.002,3020.7,3020.6,10.11223085]
[1752539273249,0.002,3020.7,3020.6,20.11223085]
[1752539273489,1e-08,3020.9,3020.8,14.10518135]
[1752539273792,1e-08,3021.2,3021.1,4.65485262]
[1752539273998,1e-08,3021.2,3021.1,16.03503636]
[1752539274184,0.01,3021.7,3021.6,1.3033]
[1752539274367,0.01,3021.7,3021.6,14.61280489]
[1752539274569,0.01,3021.7,3021.6,19.67980489]
[1752539275093,0.01,3021.7,3021.6,14.61280489]
[1752539275397,0.01,3021.7,3021.6,21.1778769]
[1752539275599,0.01,3021.7,3021.6,24.42584286]
[1752539275783,0.01,3021.7,3021.6,17.56175964]
[1752539276095,0.01,3021.7,3021.6,18.11175964]
[1752539276295,0.04,3021.9,3021.7,10.55]
[1752539276497,1e-08,3021.9,3021.8,25.99306907]
[1752539276668,1e-08,3021.9,3021.8,29.24103503]
[1752539278264,1e-08,3021.9,3021.8,29.68436266]
[1752539279360,1e-08,3021.9,3021.8,29.24103503]
[1752539281961,1e-08,3021.9,3021.8,12.93595181]
[1752539282204,1e-08,3021.9,3021.8,9.68798585]
[1752539282414,1e-08,3021.9,3021.7,3.30935641]
[1752539282702,1e-08,3021.9,3021.8,0.55]
[1752539282902,1e-08,3021.9,3021.8,0.7148]
[1752539283102,1e-08,3021.9,3021.8,0.1648]
[1752539283313,1e-08,3021.9,3021.8,1.75637888]
[1752539283472,1e-08,3021.9,3021.8,5.10566473]
[1752539283672,1e-08,3021.9,3021.8,5.65566473]
[1752539284185,1e-08,3021.9,3021.8,5.10566473]
[1752539284568,1e-08,3021.9,3021.8,4.35086473]
[1752539284905,1e-08,3021.9,3021.8,9.66086473]
[1752539285514,1e-08,3021.9,3021.8,19.66086473]
[1752539286309,0.00200001,3021.9,3021.8,19.66186473]
[1752539289821,0.00200001,3021.9,3021.8,16.35257888]
[1752539289971,0.00200001,3021.9,3021.8,10.001]
[1752539290170,4.11317635,3021.9,3021.8,0.001]
[1752539290893,0.80400001,3021.9,3021.8,0.001]
[1752539291094,4.11317635,3021.9,3021.8,0.001]
[1752539291301,4.52449398,3021.9,3021.8,0.001]
[1752539291473,6.29131764,3021.9,3021.8,0.001]
[1752539291669,0.80400001,3021.9,3021.8,0.001]
[1752539291986,4.11317635,3021.9,3021.8,0.001]
[1752539292689,0.80400001,3021.9,3021.8,0.001]
[1752539293099,4.11317635,3021.9,3021.8,0.001]
[1752539293489,4.11317635,3021.9,3021.8,0.1658]
[1752539295636,0.80400001,3021.9,3021.8,0.1658]
[1752539295836,4.11317635,3021.9,3021.8,0.1658]
[1752539296225,0.80400001,3021.9,3021.8,0.1658]
[1752539296428,0.80400001,3021.9,3021.8,0.001]
[1752539297046,4.11317635,3021.9,3021.8,0.001]
[1752539297342,0.80400001,3021.9,3021.8,0.001]
[1752539302044,5.88000001,3021.9,3021.8,0.001]
[1752539302671,0.80400001,3021.9,3021.8,3.31028585]
[1752539302870,5.87900001,3021.9,3021.8,0.001]
[1752539303248,5.87900001,3021.9,3021.8,3.31028585]
[1752539303637,5.87800001,3021.9,3021.8,0.001]
[1752539306436,9.18717635,3021.9,3021.8,0.1658]
[1752539306780,10.43680158,3021.9,3021.8,0.001]
[1752539307595,26.7508848,3021.9,3021.8,0.001]
[1752539307810,26.9156848,3021.9,3021.8,0.001]
[1752539308104,26.7508848,3021.9,3021.8,0.001]
[1752539309582,3.31039036,3020.8,3020.5,0.001]
[1752539309755,5.072,3020.7,3020.6,0.4761]
[1752539309955,5.071,3020.7,3020.5,3.31164729]
[1752539310217,5.071,3020.7,3020.5,0.24676536]
[1752539311274,5.071,3020.7,3020.5,0.001]
[1752539311812,3.31060054,3020.6,3020.5,0.001]
[1752539312305,5.071,3020.7,3020.5,0.001]
[1752539312482,8.38155217,3020.7,3020.5,0.001]
[1752539313013,5.071,3020.7,3020.5,0.001]
[1752539313712,3.31060054,3020.6,3020.5,0.001]
[1752539313912,8.3815409,3020.7,3020.5,0.001]
[1752539314071,5.071,3020.7,3020.5,0.001]
[1752539314611,3.31060054,3020.6,3020.5,0.001]
[1752539315174,4.14250054,3020.6,3020.5,0.001]
[1752539315514,5.39490045,3020.6,3020.5,0.001]
[1752539315669,3.31114863,3020.1,3020.0,2.0]
[1752539315874,9.20304863,3020.1,3020.0,2.0]
[1752539316518,15.51713185,3020.1,3020.0,2.0]
[1752539316728,20.73319385,3020.1,3020.0,2.0]
[1752539317709,15.66419385,3020.1,3020.0,2.0]
[1752539317897,20.73419385,3020.1,3020.0,2.0]
[1752539318173,15.66419385,3020.1,3020.0,2.0]
[1752539318376,20.73419385,3020.1,3020.0,2.0]
[1752539318974,17.42304522,3020.1,3020.0,2.0]
[1752539319180,10.73319385,3020.1,3020.0,2.0]
[1752539319406,5.66419385,3020.1,3020.0,2.0]
[1752539319720,0.8229,3020.1,3020.0,2.0]
[1752539319915,4.09238165,3020.4,3020.0,2.1648]
[1752539320123,5.071,3020.3,3020.0,2.1648]
[1752539321322,0.7815,3020.4,3020.0,2.1648]
[1752539321621,5.071,3020.2,3020.0,2.1648]
[1752539322892,5.069,3020.1,3020.0,2.1648]
[1752539325286,5.067,3020.1,3020.0,5.47605827]
[1752539325513,5.067,3020.1,3020.0,2.1648]
[1752539326822,0.8149,3020.7,3020.0,3.04365899]
[1752539327011,5.066,3020.6,3020.3,3.31092937]
[1752539327323,0.8149,3021.0,3020.6,0.1648]
[1752539327628,8.37632734,3020.9,3020.6,0.1648]
[1752539327810,0.8149,3021.0,3020.6,0.1648]
[1752539328131,5.067,3020.9,3020.6,0.1648]
[1752539328326,0.8149,3021.0,3020.2,4.76]
[1752539328633,5.069,3020.8,3020.3,0.88985241]
[1752539328780,5.069,3020.8,3020.4,3.31076219]
[1752539328982,5.069,3020.8,3020.7,0.1648]
[1752539330404,8.37938135,3020.8,3020.2,4.76]
[1752539330611,8.37938135,3020.8,3020.6,0.1648]
[1752539331631,5.069,3020.8,3020.6,0.1648]
[1752539331928,5.067,3020.7,3020.6,0.1648]
[1752539332402,0.8149,3021.0,3020.6,0.1648]
[1752539332761,5.066,3020.9,3020.7,3.31046933]
[1752539332916,5.066,3020.9,3020.6,4.08354326]
[1752539333111,5.066,3020.9,3020.8,0.1648]
[1752539333319,3.30993061,3021.3,3020.8,0.1648]
[1752539333618,3.31014443,3021.1,3020.8,0.1648]
[1752539333928,5.066,3021.0,3020.8,0.1648]
[1752539334531,8.37623044,3021.0,3020.8,0.1648]
[1752539336614,5.066,3021.0,3020.8,0.1648]
[1752539337342,3.30994306,3021.2,3020.8,0.1648]
[1752539337535,5.064,3021.1,3020.8,0.1648]
[1752539337746,5.064,3021.0,3020.8,0.1648]
[1752539337934,5.064,3021.0,3020.8,3.47510408]
[1752539338328,5.064,3021.0,3020.8,0.1648]
[1752539340363,5.064,3021.0,3020.8,3.47516177]
[1752539340569,5.064,3021.0,3020.8,0.1648]
[1752539341662,5.064,3021.0,3020.8,3.47517782]
[1752539342028,5.064,3021.0,3020.8,0.1648]
[1752539342544,3.31000766,3021.2,3020.8,0.1648]
[1752539342743,5.06,3021.1,3020.8,0.1648]
[1752539343228,8.37006959,3021.1,3020.8,0.1648]
[1752539343426,5.06,3021.1,3020.8,0.1648]
[1752539343938,8.37005515,3021.1,3020.8,0.1648]
[1752539344975,3.3102662,3021.0,3020.8,0.1648]
[1752539345126,9.91881929,3020.9,3020.8,0.1648]
[1752539345325,5.8411,3020.9,3020.4,0.1648]
[1752539345572,3.31060275,3020.6,3020.4,0.1648]
[1752539345772,5.06,3020.5,3020.4,0.1648]
[1752539346492,8.37071014,3020.5,3020.4,0.1648]
[1752539346690,5.06,3020.5,3020.4,0.1648]
[1752539347492,8.37071014,3020.5,3020.4,0.1648]
[1752539348040,3.31095379,3020.3,3020.0,2.0]
[1752539348240,5.058,3020.2,3020.0,2.0]
[1752539348638,5.058,3020.2,3020.1,0.1648]
[1752539349986,8.369039,3020.2,3020.1,0.1648]
[1752539350878,4.09694863,3020.1,3020.0,2.0]
[1752539351064,18.34896483,3020.1,3020.0,2.0]
[1752539351471,18.34896483,3020.1,3020.0,2.001]
[1752539351658,4.06206792,3019.9,3019.8,0.001]
[1752539351982,10.65767795,3019.9,3019.8,0.001]
[1752539355386,21.45667795,3019.9,3019.8,1e-08]
[1752539356384,16.39867795,3019.9,3019.8,1e-08]
[1752539356598,21.45767795,3019.9,3019.8,1e-08]
[1752539357439,22.00667795,3019.9,3019.8,1e-08]
[1752539360185,16.94867795,3019.9,3019.8,1e-08]
[1752539360488,21.45667795,3019.9,3019.8,1e-08]
[1752539361479,22.00667795,3019.9,3019.8,1e-08]
[1752539362041,21.45967795,3019.9,3019.8,1e-08]
[1752539368994,22.00967795,3019.9,3019.8,1e-08]
[1752539373616,22.01167795,3019.9,3019.8,1e-08]
[1752539374415,22.00767795,3019.9,3019.8,1e-08]
[1752539375091,28.32788761,3019.9,3019.8,1e-08]
[1752539377226,21.45667795,3019.9,3019.8,1e-08]
[1752539380384,16.40067795,3019.9,3019.8,1e-08]
[1752539380592,22.1696829,3019.9,3019.8,1e-08]
[1752539384515,17.1146829,3019.9,3019.8,1e-08]
[1752539384678,22.1666829,3019.9,3019.8,1e-08]
[1752539386176,27.6426829,3019.9,3019.8,1e-08]
[1752539386386,22.1666829,3019.9,3019.8,1e-08]
[1752539387379,22.1656829,3019.9,3019.8,1e-08]
[1752539387579,17.1146829,3019.9,3019.8,1e-08]
[1752539387774,22.1646829,3019.9,3019.8,1e-08]
[1752539393827,22.1616829,3019.9,3019.8,1e-08]
[1752539395525,30.1086829,3019.9,3019.8,1e-08]
[1752539397627,30.10692626,3019.9,3019.8,1e-08]
[1752539399892,30.10192626,3019.9,3019.8,1e-08]
[1752539403837,25.05992626,3019.9,3019.8,1e-08]
[1752539404038,30.09992626,3019.9,3019.8,1e-08]
[1752539408128,30.64992626,3019.9,3019.8,1e-08]
[1752539409229,30.96036093,3019.9,3019.8,1e-08]
[1752539410167,30.64992626,3019.9,3019.8,1e-08]
[1752539411053,30.96032239,3019.9,3019.8,1e-08]
[1752539411369,30.64992626,3019.9,3019.8,1e-08]
[1752539411722,25.60992626,3019.9,3019.8,1e-08]
[1752539412180,30.64992626,3019.9,3019.8,1e-08]
[1752539412571,30.96029694,3019.9,3019.8,1e-08]
[1752539413129,30.64992626,3019.9,3019.8,1e-08]
[1752539413463,30.96027744,3019.9,3019.8,1e-08]
[1752539415734,30.96023803,3019.9,3019.8,1e-08]
[1752539416336,30.96023537,3019.9,3019.8,1e-08]
[1752539417151,31.12252375,3019.9,3019.8,1e-08]
[1752539418638,31.12252375,3019.9,3019.1,1e-08]
[1752539418639,3.31213566,3019.2,3019.1,1e-08]
[1752539418863,19.01455285,3019.2,3019.1,1e-08]
[1752539419439,26.96155285,3019.2,3019.1,1e-08]
[1752539422493,3.31279401,3018.6,3018.5,0.001]
[1752539422650,3.31279401,3018.6,3017.2,10.001]
[1752539422651,3.31323305,3018.2,3017.2,0.001]
[1752539422852,8.51883305,3018.2,3017.7,0.1656]
[1752539424988,0.1656,3018.2,3017.8,3.31361931]
[1752539425187,0.1656,3018.2,3017.7,6.48580966]
[1752539425188,5.04,3018.2,3018.1,0.2056]
[1752539425352,8.35323305,3018.2,3018.1,0.2056]
[1752539425549,8.35323305,3018.2,3018.1,0.9958]
[1752539425748,8.35323305,3018.2,3018.1,0.8302]
[1752539426787,8.51883305,3018.2,3018.1,0.8302]
[1752539427790,16.02223918,3018.2,3018.1,0.04]
[1752539428156,16.02223918,3018.2,3017.9,0.7548]
[1752539428157,3.31334283,3018.1,3017.7,0.7548]
[1752539428385,18.35334283,3018.1,3017.7,0.7548]
[1752539428579,14.2502743,3018.1,3017.7,0.7548]
[1752539428786,18.51894283,3018.1,3017.7,0.7548]
[1752539430491,13.47894283,3018.1,3017.7,0.7548]
[1752539430693,18.52094283,3018.1,3017.7,0.7548]
[1752539434504,18.51994283,3018.1,3017.7,0.7548]
[1752539434707,13.47894283,3018.1,3017.7,0.7548]
[1752539434882,18.51994283,3018.1,3017.7,0.7548]
[1752539435429,18.51994283,3018.1,3018.0,0.902184]
[1752539437067,13.47894283,3018.1,3018.0,0.902184]
[1752539437480,18.51994283,3018.1,3018.0,0.902184]
[1752539438109,13.47894283,3018.1,3018.0,0.902184]
[1752539438412,18.51994283,3018.1,3018.0,0.902184]
[1752539438909,18.51994283,3018.1,3017.7,0.7548]
[1752539438910,3.31367221,3017.8,3017.7,0.7548]
[1752539439218,3.31400165,3017.5,3017.4,0.8043]
[1752539439425,8.35500165,3017.5,3017.4,0.8043]
[1752539439822,3.47971148,3017.4,3017.3,0.001]
[1752539441406,8.52171148,3017.4,3017.3,0.001]
[1752539442707,3.31422132,3017.3,3017.2,0.001]
[1752539442922,13.31422132,3017.3,3017.2,0.001]
[1752539445586,18.35622132,3017.3,3017.2,0.001]
[1752539445791,20.53953891,3017.3,3017.2,0.001]
[1752539446589,20.53953891,3017.3,3017.2,1e-08]
[1752539446805,21.30513891,3017.3,3017.2,1e-08]
[1752539447343,19.80014082,3017.2,3017.1,1e-08]
[1752539448929,24.84214082,3017.2,3017.1,1e-08]
[1752539449133,25.44136836,3017.2,3017.1,1e-08]
[1752539450119,25.44236836,3017.2,3017.1,1e-08]
[1752539459348,3.31532009,3016.3,3016.2,0.83]
[1752539459666,8.35832009,3016.3,3016.2,0.83]
[1752539460038,3.31532009,3016.3,3016.2,0.83]
[1752539460245,8.35832009,3016.3,3016.2,0.83]
[1752539462580,3.31532009,3016.3,3016.2,0.83]
[1752539462870,8.35832009,3016.3,3016.2,0.83]
[1752539463959,3.31543001,3016.2,3016.1,0.041]
[1752539464557,3.31534243,3016.3,3016.1,0.041]
[1752539464762,8.35843001,3016.2,3016.1,0.041]
[1752539465662,3.31543001,3016.2,3016.1,0.041]
[1752539465867,8.35843001,3016.2,3016.1,0.041]
[1752539467871,8.1186,3016.4,3016.1,0.041]
[1752539468056,8.35838841,3016.3,3016.1,0.041]
[1752539469063,3.31543001,3016.2,3016.1,0.041]
[1752539470273,8.35837723,3016.3,3016.1,0.041]
[1752539470572,3.31543001,3016.2,3016.1,0.041]
[1752539471364,5.27810598,3016.2,3016.1,0.041]
[1752539472276,3.31543001,3016.2,3016.1,0.041]
[1752539473365,8.35943001,3016.2,3016.1,0.041]
[1752539473777,3.31543001,3016.2,3016.1,0.041]
[1752539474076,8.35843001,3016.2,3016.1,0.041]
[1752539476585,24.84423967,3016.2,3016.1,0.041]
[1752539476794,27.6267848,3016.2,3016.1,0.041]
[1752539476965,24.84423967,3016.2,3016.1,0.041]
[1752539480574,18.52403001,3016.2,3016.1,0.041]
[1752539482091,18.52503001,3016.2,3016.1,0.041]
[1752539483874,13.48103001,3016.2,3016.1,0.041]
[1752539484078,18.52503001,3016.2,3016.1,0.041]
[1752539488818,7.953,3016.4,3016.1,0.041]
[1752539489021,8.1186,3016.4,3016.1,0.041]
[1752539489320,8.1186,3016.4,3016.3,3.31532009]
[1752539489321,7.953,3016.4,3016.3,3.31532009]
[1752539489521,12.997,3016.4,3016.3,4.80285574]
[1752539490558,7.953,3016.4,3016.3,4.80285574]
[1752539490688,12.997,3016.4,3016.3,4.80285574]
[1752539491290,0.002,3017.1,3016.6,0.7543]
[1752539491622,0.002,3017.1,3017.0,0.9199]
[1752539491829,5.046,3017.1,3017.0,0.9199]
[1752539492029,0.002,3017.1,3017.0,0.9199]
[1752539492234,5.045,3017.1,3017.0,0.9199]
[1752539493834,8.35944101,3017.1,3017.0,0.9199]
[1752539496137,3.31488049,3016.7,3016.6,0.7539]
[1752539496303,8.35788049,3016.7,3016.6,0.7539]
[1752539496503,8.35788049,3016.7,3016.6,0.9195]
[1752539497737,3.31521018,3016.4,3016.3,0.68373565]
[1752539497936,8.35821018,3016.4,3016.3,0.68373565]
[1752539498166,8.35821018,3016.4,3016.3,0.1656]
[1752539498441,3.31472796,3016.9,3016.3,0.9584]